[Event "*** SCC Grand Prix: Titled Tuesday Blitz"]
[Site "Chess.com"]
[Date "2020.07.07"]
[Round "10"]
[White "ThePatrick27"]
[Black "tlomigtlis"]
[Result "1-0"]
[WhiteElo "2507"]
[BlackElo "2361"]
[TimeControl "180+1"]
[EndTime "11:58:43 PDT"]
[Termination "ThePatrick27 won by checkmate"]

1. d4 {[%clk 0:03:00.9]} 1... d5 {[%clk 0:02:59.6]} 2. c4 {[%clk 0:03:01.3]}
2... c6 {[%clk 0:02:59.9]} 3. Nc3 {[%clk 0:03:01.7]} 3... Nf6 {[%clk 0:03:00.2]}
4. Nf3 {[%clk 0:03:01.9]} 4... e6 {[%clk 0:03:00.6]} 5. cxd5 {[%clk 0:03:01.5]}
5... exd5 {[%clk 0:03:00.2]} 6. Bg5 {[%clk 0:03:02]} 6... h6 {[%clk 0:03:00.5]}
7. Bh4 {[%clk 0:03:01.8]} 7... Bf5 {[%clk 0:03:01]} 8. Qb3 {[%clk 0:02:58.9]}
8... Qb6 {[%clk 0:02:54.9]} 9. Qxb6 {[%clk 0:02:58.7]} 9... axb6 {[%clk
0:02:55.8]} 10. Bxf6 {[%clk 0:02:58.6]} 10... gxf6 {[%clk 0:02:55.1]} 11. e3
{[%clk 0:02:57.2]} 11... Nd7 {[%clk 0:02:47.2]} 12. Kd2 {[%clk 0:02:49]} 12...
Bd6 {[%clk 0:02:43]} 13. Nh4 {[%clk 0:02:47.9]} 13... Bg6 {[%clk 0:02:36.5]} 14.
Bd3 {[%clk 0:02:47.6]} 14... Nf8 {[%clk 0:02:21.8]} 15. g3 {[%clk 0:02:44.8]}
15... Kd7 {[%clk 0:02:17.6]} 16. Rhc1 {[%clk 0:02:35.2]} 16... Rg8 {[%clk
0:02:13.3]} 17. a3 {[%clk 0:02:25.1]} 17... Ne6 {[%clk 0:02:02.8]} 18. f4 {[%clk
0:02:18.4]} 18... Nc7 {[%clk 0:01:51.6]} 19. Nf5 {[%clk 0:02:12.1]} 19... Rae8
{[%clk 0:01:47.6]} 20. Nxh6 {[%clk 0:02:04.9]} 20... Rh8 {[%clk 0:01:39.5]} 21.
Ng4 {[%clk 0:01:52.2]} 21... Ke6 {[%clk 0:01:18]} 22. Bxg6 {[%clk 0:01:44.3]}
22... fxg6 {[%clk 0:01:16.7]} 23. h4 {[%clk 0:01:44.2]} 23... g5 {[%clk
0:01:13.1]} 24. hxg5 {[%clk 0:01:42.7]} 24... fxg5 {[%clk 0:01:14]} 25. Rh1
{[%clk 0:01:41.8]} 25... gxf4 {[%clk 0:01:07.5]} 26. gxf4 {[%clk 0:01:39.6]}
26... Reg8 {[%clk 0:01:07.4]} 27. Rxh8 {[%clk 0:01:33.4]} 27... Rxh8 {[%clk
0:01:08.3]} 28. Rf1 {[%clk 0:01:31.9]} 28... Kf5 {[%clk 0:01:06.6]} 29. Nf2
{[%clk 0:01:26]} 29... Rh2 {[%clk 0:01:04.8]} 30. Ke2 {[%clk 0:01:25.9]} 30...
Ne6 {[%clk 0:00:58.1]} 31. Rg1 {[%clk 0:01:14.4]} 31... Rh8 {[%clk 0:00:29.1]}
32. Nb1 {[%clk 0:01:08.9]} 32... c5 {[%clk 0:00:28.7]} 33. dxc5 {[%clk
0:01:07.7]} 33... bxc5 {[%clk 0:00:29.6]} 34. Rh1 {[%clk 0:00:56.5]} 34... Rxh1
{[%clk 0:00:28.3]} 35. Nxh1 {[%clk 0:00:57.4]} 35... d4 {[%clk 0:00:28.8]} 36.
Kf3 {[%clk 0:00:53.6]} 36... dxe3 {[%clk 0:00:28.2]} 37. Ng3+ {[%clk 0:00:53.7]}
37... Kf6 {[%clk 0:00:23.6]} 38. Ne4+ {[%clk 0:00:53.8]} 38... Ke7 {[%clk
0:00:20.4]} 39. Nxd6 {[%clk 0:00:53.7]} 39... Kxd6 {[%clk 0:00:21.3]} 40. Kxe3
{[%clk 0:00:53.8]} 40... Nd4 {[%clk 0:00:21.8]} 41. Nc3 {[%clk 0:00:52.5]} 41...
Nf5+ {[%clk 0:00:21.8]} 42. Ke4 {[%clk 0:00:50.9]} 42... Ng3+ {[%clk 0:00:22]}
43. Kf3 {[%clk 0:00:51]} 43... Nf5 {[%clk 0:00:22.3]} 44. Kg4 {[%clk 0:00:46.5]}
44... Ne3+ {[%clk 0:00:22.4]} 45. Kg5 {[%clk 0:00:46.4]} 45... Kc6 {[%clk
0:00:21.4]} 46. f5 {[%clk 0:00:45.1]} 46... Kd6 {[%clk 0:00:16]} 47. f6 {[%clk
0:00:43.7]} 47... Kd7 {[%clk 0:00:14.5]} 48. Kg6 {[%clk 0:00:42]} 48... Ke8
{[%clk 0:00:14.5]} 49. Ne4 {[%clk 0:00:40.4]} 49... b6 {[%clk 0:00:13.4]} 50.
Nd6+ {[%clk 0:00:38.9]} 50... Kf8 {[%clk 0:00:13.5]} 51. Nf5 {[%clk 0:00:35.7]}
51... Nc4 {[%clk 0:00:12.8]} 52. Ng7 {[%clk 0:00:28.2]} 52... Ne5+ {[%clk
0:00:11.6]} 53. Kf5 {[%clk 0:00:28.5]} 53... Nc4 {[%clk 0:00:12.2]} 54. Ne6+
{[%clk 0:00:27.8]} 54... Kf7 {[%clk 0:00:11.8]} 55. Ng5+ {[%clk 0:00:27.9]}
55... Kf8 {[%clk 0:00:11.8]} 56. Ke6 {[%clk 0:00:28.1]} 56... Nxb2 {[%clk
0:00:11.3]} 57. Nh7+ {[%clk 0:00:28.4]} 57... Kg8 {[%clk 0:00:11.1]} 58. f7+
{[%clk 0:00:29.3]} 58... Kxh7 {[%clk 0:00:11.3]} 59. f8=Q {[%clk 0:00:30]} 59...
Kg6 {[%clk 0:00:11.4]} 60. Qf6+ {[%clk 0:00:29.5]} 60... Kh5 {[%clk 0:00:11.8]}
61. Qxb2 {[%clk 0:00:30.4]} 61... Kg4 {[%clk 0:00:12.7]} 62. Qxb6 {[%clk
0:00:30.3]} 62... Kf4 {[%clk 0:00:13.6]} 63. Qxc5 {[%clk 0:00:30.7]} 63... Ke4
{[%clk 0:00:14.5]} 64. a4 {[%clk 0:00:31.2]} 64... Kd3 {[%clk 0:00:15.4]} 65. a5
{[%clk 0:00:32]} 65... Ke2 {[%clk 0:00:16.3]} 66. a6 {[%clk 0:00:32.6]} 66...
Kd3 {[%clk 0:00:17.2]} 67. a7 {[%clk 0:00:33.3]} 67... Ke2 {[%clk 0:00:18.1]}
68. a8=Q {[%clk 0:00:33.8]} 68... Kd3 {[%clk 0:00:19]} 69. Qaa3+ {[%clk
0:00:34]} 69... Ke2 {[%clk 0:00:19.9]} 70. Qce3+ {[%clk 0:00:34]} 70... Kd1
{[%clk 0:00:19.6]} 71. Qac1# {[%clk 0:00:34]} 1-0

[Event "*** SCC Grand Prix: Titled Tuesday Blitz"]
[Site "Chess.com"]
[Date "2020.07.07"]
[Round "10"]
[White "Region_07"]
[Black "Makswolf200817"]
[Result "1-0"]
[WhiteElo "2376"]
[BlackElo "2477"]
[TimeControl "180+1"]
[EndTime "11:58:48 PDT"]
[Termination "Region_07 won by resignation"]

1. d4 {[%clk 0:03:00.9]} 1... d5 {[%clk 0:02:59.5]} 2. Bg5 {[%clk 0:03:00.5]}
2... h6 {[%clk 0:02:58.4]} 3. Bh4 {[%clk 0:02:59.2]} 3... Nf6 {[%clk 0:02:58.7]}
4. Bxf6 {[%clk 0:02:58.6]} 4... exf6 {[%clk 0:02:58.5]} 5. e3 {[%clk 0:02:58.2]}
5... Bd6 {[%clk 0:02:57.3]} 6. c4 {[%clk 0:02:58.2]} 6... c6 {[%clk 0:02:55.3]}
7. cxd5 {[%clk 0:02:57.1]} 7... cxd5 {[%clk 0:02:55.6]} 8. Nc3 {[%clk
0:02:57.5]} 8... Qa5 {[%clk 0:02:48.7]} 9. g3 {[%clk 0:02:55.5]} 9... Nc6 {[%clk
0:02:44.2]} 10. Bg2 {[%clk 0:02:54.8]} 10... Be6 {[%clk 0:02:44]} 11. Ne2 {[%clk
0:02:54.7]} 11... O-O {[%clk 0:02:43.4]} 12. O-O {[%clk 0:02:54.3]} 12... Rfd8
{[%clk 0:02:37.9]} 13. Qb3 {[%clk 0:02:54]} 13... Ne7 {[%clk 0:02:32.7]} 14.
Rac1 {[%clk 0:02:44.3]} 14... a6 {[%clk 0:02:20.5]} 15. a3 {[%clk 0:02:28.7]}
15... Rac8 {[%clk 0:02:16.5]} 16. Rc2 {[%clk 0:02:24.3]} 16... Bf5 {[%clk
0:02:12.4]} 17. Rcc1 {[%clk 0:02:22.9]} 17... Bd3 {[%clk 0:02:08]} 18. Rfd1
{[%clk 0:02:19.3]} 18... Bc4 {[%clk 0:02:07]} 19. Qc2 {[%clk 0:02:19.1]} 19...
Bxa3 {[%clk 0:01:49.5]} 20. Ra1 {[%clk 0:01:10.7]} 20... Bxe2 {[%clk 0:01:46.2]}
21. Qxe2 {[%clk 0:01:02.6]} 21... Rxc3 {[%clk 0:01:42.5]} 22. bxc3 {[%clk
0:00:57.6]} 22... Qxc3 {[%clk 0:01:43.4]} 23. Rdb1 {[%clk 0:00:49.5]} 23... b5
{[%clk 0:01:39.5]} 24. Qa2 {[%clk 0:00:49]} 24... b4 {[%clk 0:01:37.3]} 25. Qe2
{[%clk 0:00:44.6]} 25... a5 {[%clk 0:01:35.2]} 26. Qa6 {[%clk 0:00:41.3]} 26...
Nc6 {[%clk 0:01:29.1]} 27. Qb5 {[%clk 0:00:34.3]} 27... Rc8 {[%clk 0:00:59.7]}
28. Bxd5 {[%clk 0:00:32]} 28... Ne7 {[%clk 0:00:57.5]} 29. Bg2 {[%clk
0:00:25.4]} 29... Qd2 {[%clk 0:00:54.4]} 30. Qxa5 {[%clk 0:00:24.4]} 30... Rc2
{[%clk 0:00:53.6]} 31. Rf1 {[%clk 0:00:20.3]} 31... Ng6 {[%clk 0:00:45.8]} 32.
Qd8+ {[%clk 0:00:19.2]} 32... Kh7 {[%clk 0:00:45.7]} 33. h4 {[%clk 0:00:19.8]}
33... h5 {[%clk 0:00:45.3]} 34. Qd5 {[%clk 0:00:18.7]} 34... Kh6 {[%clk
0:00:44.5]} 35. Qf5 {[%clk 0:00:17.9]} 35... Bb2 {[%clk 0:00:41.6]} 36. Be4
{[%clk 0:00:18]} 36... Bxa1 {[%clk 0:00:16.5]} 37. Bxc2 {[%clk 0:00:17.6]} 37...
Bc3 {[%clk 0:00:15.9]} 38. Kg2 {[%clk 0:00:14.9]} 38... Qe2 {[%clk 0:00:14.8]}
39. Bb3 {[%clk 0:00:14.6]} 39... Nh8 {[%clk 0:00:12.6]} 40. Qf4+ {[%clk
0:00:13.7]} 40... Kh7 {[%clk 0:00:13]} 41. Qf3 {[%clk 0:00:13.6]} 41... Qd3
{[%clk 0:00:11.8]} 42. Qf4 {[%clk 0:00:12.3]} 42... Kg8 {[%clk 0:00:12.5]} 43.
Rc1 {[%clk 0:00:10.8]} 43... Kh7 {[%clk 0:00:10.4]} 44. Bc2 {[%clk 0:00:10]}
44... Qxc2 {[%clk 0:00:07.5]} 45. Rxc2 {[%clk 0:00:10.9]} 45... Ng6 {[%clk
0:00:08.3]} 46. Qf5 {[%clk 0:00:10]} 46... Kh6 {[%clk 0:00:08.4]} 47. Rxc3
{[%clk 0:00:10.2]} 47... bxc3 {[%clk 0:00:08.2]} 48. d5 {[%clk 0:00:10.5]} 48...
Ne7 {[%clk 0:00:08.8]} 49. Qd3 {[%clk 0:00:09.5]} 49... Nc8 {[%clk 0:00:08.2]}
50. Qxc3 {[%clk 0:00:08.9]} 50... Nd6 {[%clk 0:00:08.4]} 51. Qc6 {[%clk
0:00:09]} 51... Nf5 {[%clk 0:00:08.9]} 52. d6 {[%clk 0:00:09.8]} 52... g5 {[%clk
0:00:08.3]} 53. d7 {[%clk 0:00:09.8]} 1-0

[Event "*** SCC Grand Prix: Titled Tuesday Blitz"]
[Site "Chess.com"]
[Date "2020.07.07"]
[Round "10"]
[White "Mikhal867"]
[Black "GEKKESPONS"]
[Result "0-1"]
[WhiteElo "2362"]
[BlackElo "2529"]
[TimeControl "180+1"]
[EndTime "11:58:49 PDT"]
[Termination "GEKKESPONS won on time"]

1. e4 {[%clk 0:02:57.9]} 1... e6 {[%clk 0:02:59.5]} 2. d4 {[%clk 0:02:55.4]}
2... d5 {[%clk 0:02:59.8]} 3. e5 {[%clk 0:02:55.4]} 3... c5 {[%clk 0:02:51.4]}
4. Qg4 {[%clk 0:02:53.7]} 4... cxd4 {[%clk 0:02:47.6]} 5. Bd3 {[%clk 0:02:52.9]}
5... Nc6 {[%clk 0:02:45.7]} 6. Nf3 {[%clk 0:02:50.1]} 6... Nge7 {[%clk
0:02:42.3]} 7. h4 {[%clk 0:02:48.3]} 7... Ng6 {[%clk 0:02:38.1]} 8. Bf4 {[%clk
0:02:43.4]} 8... Nxf4 {[%clk 0:02:31]} 9. Qxf4 {[%clk 0:02:42]} 9... Qc7 {[%clk
0:02:27.9]} 10. O-O {[%clk 0:02:31.2]} 10... Be7 {[%clk 0:02:16.6]} 11. Re1
{[%clk 0:02:15.7]} 11... O-O {[%clk 0:02:13.7]} 12. h5 {[%clk 0:02:15.7]} 12...
h6 {[%clk 0:02:13.5]} 13. Nbd2 {[%clk 0:02:12.3]} 13... f5 {[%clk 0:02:07.8]}
14. a3 {[%clk 0:02:08]} 14... Bd7 {[%clk 0:02:06.3]} 15. Nb3 {[%clk 0:02:05.4]}
15... Be8 {[%clk 0:02:00.3]} 16. Nbxd4 {[%clk 0:02:01.8]} 16... Nxd4 {[%clk
0:01:55.3]} 17. Nxd4 {[%clk 0:02:01]} 17... Qb6 {[%clk 0:01:55.5]} 18. Nb3
{[%clk 0:01:48.2]} 18... Bxh5 {[%clk 0:01:50.9]} 19. Be2 {[%clk 0:01:30.9]}
19... Bxe2 {[%clk 0:01:33.8]} 20. Rxe2 {[%clk 0:01:27.8]} 20... Rac8 {[%clk
0:01:34.7]} 21. Qd4 {[%clk 0:01:19.9]} 21... Qa6 {[%clk 0:01:26.6]} 22. Re3
{[%clk 0:01:15.2]} 22... Rc4 {[%clk 0:01:25.5]} 23. Qd3 {[%clk 0:01:14]} 23...
Rfc8 {[%clk 0:01:22.8]} 24. c3 {[%clk 0:01:13]} 24... Qb6 {[%clk 0:01:22]} 25.
Nd4 {[%clk 0:01:10.5]} 25... Bc5 {[%clk 0:01:20.2]} 26. Rg3 {[%clk 0:01:01.1]}
26... Bxd4 {[%clk 0:01:19.5]} 27. cxd4 {[%clk 0:01:01.1]} 27... Qxd4 {[%clk
0:01:15.5]} 28. Qb3 {[%clk 0:01:00.1]} 28... Rc1+ {[%clk 0:00:58.1]} 29. Rxc1
{[%clk 0:00:57.9]} 29... Rxc1+ {[%clk 0:00:59]} 30. Kh2 {[%clk 0:00:57]} 30...
Qxf2 {[%clk 0:00:53.9]} 31. Rf3 {[%clk 0:00:48.4]} 31... Qh4+ {[%clk 0:00:49.8]}
32. Rh3 {[%clk 0:00:47.5]} 32... Qf4+ {[%clk 0:00:49.8]} 33. Rg3 {[%clk
0:00:47.4]} 33... Qxe5 {[%clk 0:00:32.4]} 34. Qxb7 {[%clk 0:00:45.5]} 34... Rc4
{[%clk 0:00:30.6]} 35. Kh3 {[%clk 0:00:37.8]} 35... Qf6 {[%clk 0:00:29]} 36. Kh2
{[%clk 0:00:23.4]} 36... Rh4+ {[%clk 0:00:28.5]} 37. Rh3 {[%clk 0:00:22.7]}
37... Qe5+ {[%clk 0:00:27.7]} 38. Kg1 {[%clk 0:00:19.9]} 38... Rxh3 {[%clk
0:00:27.9]} 39. gxh3 {[%clk 0:00:19.6]} 39... Qg3+ {[%clk 0:00:28.2]} 40. Kf1
{[%clk 0:00:19.5]} 40... Qxh3+ {[%clk 0:00:28.5]} 41. Ke2 {[%clk 0:00:19.5]}
41... Qg2+ {[%clk 0:00:28.4]} 42. Kd3 {[%clk 0:00:19.2]} 42... Qe4+ {[%clk
0:00:28.4]} 43. Kc3 {[%clk 0:00:19.2]} 43... Qc4+ {[%clk 0:00:28.3]} 44. Kd2
{[%clk 0:00:18.8]} 44... Qd4+ {[%clk 0:00:28.6]} 45. Kc2 {[%clk 0:00:18.4]}
45... h5 {[%clk 0:00:27.1]} 46. Qc8+ {[%clk 0:00:17.6]} 46... Kh7 {[%clk
0:00:27.2]} 47. Qe8 {[%clk 0:00:15.7]} 47... Qe4+ {[%clk 0:00:26.4]} 48. Kc3
{[%clk 0:00:14.9]} 48... Kh6 {[%clk 0:00:26.6]} 49. Qh8+ {[%clk 0:00:13.8]}
49... Kg6 {[%clk 0:00:26.8]} 50. Qe8+ {[%clk 0:00:13.6]} 50... Kg5 {[%clk
0:00:27.1]} 51. Qe7+ {[%clk 0:00:11.5]} 51... Kf4 {[%clk 0:00:25.9]} 52. Qh4+
{[%clk 0:00:08.2]} 52... Ke5 {[%clk 0:00:26]} 53. Qxh5 {[%clk 0:00:05]} 53...
Qd4+ {[%clk 0:00:20.4]} 0-1

[Event "*** SCC Grand Prix: Titled Tuesday Blitz"]
[Site "Chess.com"]
[Date "2020.07.07"]
[Round "10"]
[White "Joseacorrea"]
[Black "Grandmaster2B"]
[Result "0-1"]
[WhiteElo "1929"]
[BlackElo "2423"]
[TimeControl "180+1"]
[EndTime "11:58:49 PDT"]
[Termination "Grandmaster2B won by resignation"]

1. c4 {[%clk 0:02:59.4]} 1... Nf6 {[%clk 0:02:59.9]} 2. Nc3 {[%clk 0:02:59.4]}
2... e6 {[%clk 0:02:59.9]} 3. Nf3 {[%clk 0:02:58.2]} 3... c5 {[%clk 0:02:59.4]}
4. g3 {[%clk 0:02:57.9]} 4... Nc6 {[%clk 0:02:59.6]} 5. Bg2 {[%clk 0:02:58.4]}
5... Be7 {[%clk 0:02:59.3]} 6. O-O {[%clk 0:02:58.4]} 6... O-O {[%clk
0:02:57.6]} 7. d4 {[%clk 0:02:58.4]} 7... d5 {[%clk 0:02:57.7]} 8. cxd5 {[%clk
0:02:55.6]} 8... Nxd5 {[%clk 0:02:55.9]} 9. e4 {[%clk 0:02:49.2]} 9... Nxc3
{[%clk 0:02:54.4]} 10. bxc3 {[%clk 0:02:50.1]} 10... cxd4 {[%clk 0:02:54.3]} 11.
cxd4 {[%clk 0:02:50.8]} 11... Bf6 {[%clk 0:02:54.5]} 12. Be3 {[%clk 0:02:44.5]}
12... b6 {[%clk 0:02:48.6]} 13. Rc1 {[%clk 0:02:37.7]} 13... Bb7 {[%clk
0:02:47.6]} 14. Qa4 {[%clk 0:02:16.6]} 14... Na5 {[%clk 0:02:39]} 15. Nd2 {[%clk
0:01:54.7]} 15... Rc8 {[%clk 0:02:31.3]} 16. f4 {[%clk 0:01:30.7]} 16... Bc6
{[%clk 0:01:43.1]} 17. Qd1 {[%clk 0:01:16.8]} 17... Bxd4 {[%clk 0:01:40.2]} 18.
Bxd4 {[%clk 0:01:11.5]} 18... Qxd4+ {[%clk 0:01:41.1]} 19. Kh1 {[%clk
0:01:06.8]} 19... Bb5 {[%clk 0:01:26.3]} 20. Re1 {[%clk 0:00:59.6]} 20... Rcd8
{[%clk 0:01:05.2]} 21. Nb3 {[%clk 0:00:38]} 21... Qf2 {[%clk 0:00:29.2]} 22. Qf3
{[%clk 0:00:37.4]} 22... Qxa2 {[%clk 0:00:21.5]} 23. Nxa5 {[%clk 0:00:32.2]}
23... Qxa5 {[%clk 0:00:22.4]} 24. Ra1 {[%clk 0:00:31.9]} 24... Ba4 {[%clk
0:00:12.5]} 25. Qa3 {[%clk 0:00:27.3]} 25... b5 {[%clk 0:00:09.5]} 26. Qc5
{[%clk 0:00:25]} 26... Rc8 {[%clk 0:00:05.4]} 27. Qe3 {[%clk 0:00:22.8]} 27...
Rc3 {[%clk 0:00:04.1]} 28. Qd4 {[%clk 0:00:22.4]} 28... Rc4 {[%clk 0:00:03.7]}
29. Qd6 {[%clk 0:00:20.5]} 29... Qc7 {[%clk 0:00:03]} 30. Qxc7 {[%clk
0:00:18.8]} 30... Rxc7 {[%clk 0:00:03.9]} 31. Rec1 {[%clk 0:00:18.4]} 31... Rfc8
{[%clk 0:00:03.6]} 32. Rxc7 {[%clk 0:00:17.2]} 32... Rxc7 {[%clk 0:00:04.5]} 33.
Bh3 {[%clk 0:00:15.7]} 33... a6 {[%clk 0:00:03.3]} 34. f5 {[%clk 0:00:15.7]}
34... exf5 {[%clk 0:00:02.9]} 35. Bxf5 {[%clk 0:00:15.2]} 35... Ra7 {[%clk
0:00:02.5]} 36. Rc1 {[%clk 0:00:14.4]} 36... g6 {[%clk 0:00:01.7]} 37. Bh3
{[%clk 0:00:11.3]} 37... Bb3 {[%clk 0:00:02]} 38. e5 {[%clk 0:00:10.9]} 38...
Bc4 {[%clk 0:00:01.9]} 39. Kg1 {[%clk 0:00:10.6]} 39... a5 {[%clk 0:00:02.3]}
40. Bg2 {[%clk 0:00:11.5]} 40... a4 {[%clk 0:00:02.6]} 41. Bc6 {[%clk
0:00:10.2]} 41... a3 {[%clk 0:00:02.7]} 42. Ra1 {[%clk 0:00:09.7]} 42... a2
{[%clk 0:00:02.9]} 43. Kf2 {[%clk 0:00:08.9]} 43... b4 {[%clk 0:00:03.3]} 44.
Ke3 {[%clk 0:00:07.6]} 44... b3 {[%clk 0:00:03.5]} 45. Kd4 {[%clk 0:00:08.5]}
45... b2 {[%clk 0:00:03.8]} 46. Re1 {[%clk 0:00:05.2]} 46... b1=Q {[%clk
0:00:03.4]} 47. Rxb1 {[%clk 0:00:04.1]} 47... axb1=Q {[%clk 0:00:04.3]} 48. Kxc4
{[%clk 0:00:04.9]} 48... Rc7 {[%clk 0:00:04.7]} 49. Kd5 {[%clk 0:00:04.6]} 49...
Qd3+ {[%clk 0:00:04.6]} 50. Kc5 {[%clk 0:00:03]} 50... Qc3+ {[%clk 0:00:05]} 51.
Kb5 {[%clk 0:00:02.6]} 51... Qxc6+ {[%clk 0:00:05.9]} 52. Kb4 {[%clk 0:00:02.6]}
52... Rb7+ {[%clk 0:00:06.8]} 0-1

[Event "*** SCC Grand Prix: Titled Tuesday Blitz"]
[Site "Chess.com"]
[Date "2020.07.07"]
[Round "10"]
[White "ChessWarrior7197"]
[Black "Gusarov91"]
[Result "0-1"]
[WhiteElo "2853"]
[BlackElo "2660"]
[TimeControl "180+1"]
[EndTime "11:58:54 PDT"]
[Termination "Gusarov91 won on time"]

1. e4 {[%clk 0:03:00.9]} 1... c6 {[%clk 0:02:59.6]} 2. d3 {[%clk 0:03:00.8]}
2... d5 {[%clk 0:02:59.5]} 3. Nd2 {[%clk 0:03:00.3]} 3... dxe4 {[%clk
0:02:59.3]} 4. dxe4 {[%clk 0:03:00.1]} 4... e5 {[%clk 0:02:57.9]} 5. Ngf3 {[%clk
0:02:59.8]} 5... Bg4 {[%clk 0:02:51.5]} 6. h3 {[%clk 0:02:57.6]} 6... Bxf3
{[%clk 0:02:51.7]} 7. Qxf3 {[%clk 0:02:56.1]} 7... Nf6 {[%clk 0:02:51.1]} 8. a4
{[%clk 0:02:53.3]} 8... Bc5 {[%clk 0:02:48.6]} 9. Bc4 {[%clk 0:02:53]} 9... O-O
{[%clk 0:02:48.2]} 10. O-O {[%clk 0:02:53.1]} 10... Nbd7 {[%clk 0:02:48]} 11.
Nb3 {[%clk 0:02:52.7]} 11... Bb6 {[%clk 0:02:39.9]} 12. a5 {[%clk 0:02:52.3]}
12... Bc7 {[%clk 0:02:40]} 13. Be3 {[%clk 0:02:52.2]} 13... Qe7 {[%clk
0:02:39.1]} 14. Rfd1 {[%clk 0:02:51.2]} 14... Rfd8 {[%clk 0:02:35.5]} 15. Rd2
{[%clk 0:02:46.3]} 15... Qb4 {[%clk 0:02:26]} 16. Bd3 {[%clk 0:01:44.3]} 16...
b6 {[%clk 0:02:04.8]} 17. Ra3 {[%clk 0:01:34.9]} 17... Qe7 {[%clk 0:02:01.3]}
18. Rd1 {[%clk 0:01:33.5]} 18... Bd6 {[%clk 0:01:57.3]} 19. Ra2 {[%clk
0:01:31.2]} 19... Nc5 {[%clk 0:01:57.3]} 20. axb6 {[%clk 0:01:16.4]} 20... axb6
{[%clk 0:01:53.8]} 21. Rda1 {[%clk 0:01:10.7]} 21... Rxa2 {[%clk 0:01:52.5]} 22.
Rxa2 {[%clk 0:01:11.6]} 22... Nxb3 {[%clk 0:01:38.7]} 23. cxb3 {[%clk
0:01:12.5]} 23... Bc5 {[%clk 0:01:36.1]} 24. Bg5 {[%clk 0:00:58.2]} 24... h6
{[%clk 0:01:35.8]} 25. Bh4 {[%clk 0:00:58]} 25... Qd6 {[%clk 0:01:26.5]} 26. Bc4
{[%clk 0:00:48]} 26... b5 {[%clk 0:01:26]} 27. Be2 {[%clk 0:00:40.5]} 27... Bd4
{[%clk 0:01:20.9]} 28. Ra6 {[%clk 0:00:39]} 28... Rb8 {[%clk 0:01:16.9]} 29.
Bxf6 {[%clk 0:00:35.5]} 29... Qxf6 {[%clk 0:01:15.1]} 30. Qxf6 {[%clk
0:00:35.7]} 30... gxf6 {[%clk 0:01:14.8]} 31. Rxc6 {[%clk 0:00:36.6]} 31... Kg7
{[%clk 0:01:11.6]} 32. Rc7 {[%clk 0:00:35]} 32... Bxb2 {[%clk 0:01:05]} 33. Bh5
{[%clk 0:00:35.1]} 33... Rf8 {[%clk 0:01:04.2]} 34. Rb7 {[%clk 0:00:35.6]} 34...
b4 {[%clk 0:00:55.5]} 35. Rxb4 {[%clk 0:00:35]} 35... f5 {[%clk 0:00:53.1]} 36.
exf5 {[%clk 0:00:35.9]} 36... Kf6 {[%clk 0:00:53.3]} 37. Rb7 {[%clk 0:00:25.4]}
37... e4 {[%clk 0:00:41.3]} 38. Kf1 {[%clk 0:00:23.9]} 38... Bd4 {[%clk
0:00:36.6]} 39. Ke2 {[%clk 0:00:17.5]} 39... Ra8 {[%clk 0:00:32.8]} 40. Rxf7+
{[%clk 0:00:17.4]} 40... Kg5 {[%clk 0:00:33]} 41. Bg6 {[%clk 0:00:05.7]} 41...
Ra2+ {[%clk 0:00:32.8]} 42. Kd1 {[%clk 0:00:06.3]} 42... Ra1+ {[%clk 0:00:30.9]}
43. Kc2 {[%clk 0:00:06.1]} 43... Ra2+ {[%clk 0:00:30.1]} 44. Kb1 {[%clk
0:00:06.6]} 44... Ra1+ {[%clk 0:00:30.1]} 45. Kc2 {[%clk 0:00:05.8]} 45... Ra2+
{[%clk 0:00:27.6]} 46. Kc1 {[%clk 0:00:05.7]} 46... Rxf2 {[%clk 0:00:19.8]} 47.
Re7 {[%clk 0:00:04.8]} 47... e3 {[%clk 0:00:18]} 48. g4 {[%clk 0:00:03.6]} 48...
Bc3 {[%clk 0:00:13.3]} 49. Kd1 {[%clk 0:00:01.3]} 49... Bd2 {[%clk 0:00:12.9]}
0-1